fUSD/lending_fUSD_20240217
["ID","MTS","AMOUNT","RATE_DAILY","PERIOD"]
[314329135,1708186238297,-855.73504622,0.00023,2]
[314329136,1708186238390,-922291.79740226,0.00023,2]
[314329137,1708186238400,-815558.40847455,0.00023,2]
[314329138,1708186238409,-43476.0,0.00023041,2]
[314329139,1708186238419,-750.0,0.00023096,2]
[314329140,1708186238429,-23963.24308147,0.0002313,2]
[314329141,1708186238438,-20866.08317019,0.000232,2]
[314329142,1708186238447,-164.62,0.0002336,2]
[314329143,1708186238456,-164.62,0.00023424,2]
[314329145,1708186238465,-164.62,0.00023488,2]
[314329147,1708186238474,-164.62,0.00023552,2]
[314329149,1708186238483,-164.62,0.00023616,2]
[314329151,1708186238493,-164.62,0.00023681,2]
[314329152,1708186238502,-164.62,0.00023745,2]
[314329154,1708186238511,-164.62,0.00023809,2]
[314329156,1708186238520,-164.62,0.00023873,2]
[314329158,1708186238529,-300.0,0.00023875,2]
[314329160,1708186238540,-164.62,0.00023937,2]
[314329162,1708186238549,-800.0,0.00023948,2]
[314329164,1708186238558,-402.48,0.00023969,2]
[314329165,1708186238568,-242.18,0.00023978,2]
[314329167,1708186238577,-200.0,0.00023992,2]
[314329169,1708186238586,-164.62,0.00024001,2]
[314329171,1708186238595,-170.64,0.00024005,2]
[314329173,1708186238604,-500.0,0.00024011,2]
[314329175,1708186238613,-200.0,0.00024015,2]
[314329177,1708186238622,-2000.0,0.00024015,2]
[314329178,1708186238631,-200.0,0.00024042,2]
[314329180,1708186238640,-250.0,0.00024044,2]
[314329182,1708186238650,-164.62,0.00024065,2]
[314329184,1708186238659,-180.44,0.00024086,2]
[314329186,1708186238668,-164.62,0.00024129,2]
[314329188,1708186238677,-250.0,0.00024133,2]
[314329190,1708186238686,-7183.6,0.00024146,2]
[314329191,1708186238695,-315.44,0.00024167,2]
[314329193,1708186238704,-164.62,0.00024193,2]
[314329195,1708186238713,-316.55789385,0.0002425,2]
[314329197,1708186238722,-164.62,0.00024257,2]
[314329199,1708186238731,-1847.66793539,0.00024266,2]
[314329200,1708186238740,-164.62,0.00024321,2]
[314329201,1708186238749,-1186.11,0.00024384,2]
[314329202,1708186238758,-164.62,0.00024385,2]
[314329203,1708186238767,-164.62,0.00024449,2]
[314329204,1708186238776,-164.62,0.00024513,2]
[314329205,1708186238785,-164.62,0.00024577,2]
[314329206,1708186238794,-250.0,0.00024658,2]
[314329207,1708186238803,-500.0,0.00024658,2]
[314329208,1708186238812,-166.49,0.00024678,2]
[314329209,1708186238821,-158.53,0.0002475,2]
[314329210,1708186238830,-2105.09,0.00024864,2]
[314329211,1708186238839,-2105.09,0.00024995,2]
[314329213,1708186238848,-1709.27742184,0.00025,2]
[314329215,1708186238857,-1593.45591278,0.00025,2]
[314329217,1708186238866,-2149.02439129,0.00025043,2]
[314329219,1708186238876,-210.0,0.00025079,2]
[314329221,1708186238884,-210.0,0.00025079,2]
[314329223,1708186238894,-34272.16166889,0.0002509,2]
[314329225,1708186238903,-7738.20285549,0.0002509,2]
[314329227,1708186238912,-2105.09,0.00025125,2]
[314329229,1708186238921,-500.0,0.00025163,2]
[314329231,1708186238930,-1175.52,0.00025166,2]
[314329233,1708186238939,-300.0,0.00025245,2]
[314329235,1708186238948,-2105.09,0.00025256,2]
[314329237,1708186238957,-991.71,0.0002528,2]
[314329239,1708186238966,-242.18,0.00025311,2]
[314329241,1708186238975,-2105.09,0.00025387,2]
[314329243,1708186238984,-150.0,0.000254,2]
[314329245,1708186238993,-222.0878001,0.000254,2]
[314329247,1708186239002,-2105.09,0.00025518,2]
[314329249,1708186239011,-1847.66793539,0.00025632,2]
[314329251,1708186239021,-2105.09,0.00025649,2]
[314329253,1708186239031,-166.49,0.00025696,2]
[314329255,1708186239040,-2105.09,0.0002578,2]
[314329257,1708186239050,-7183.6,0.0002579,2]
[314329259,1708186239061,-4796.63,0.00025828,2]
[314329261,1708186239072,-2105.09,0.00025911,2]
[314329263,1708186239081,-164.11335802,0.00025948,2]
[314329265,1708186239090,-2105.09,0.00026041,2]
[314329267,1708186239100,-150.0,0.00026079,2]
[314329269,1708186239110,-1167.2,0.00026165,2]
[314329271,1708186239119,-2105.09,0.00026172,2]
[314329273,1708186239128,-17358.24285998,0.000263,2]
[314329275,1708186239137,-2105.09,0.00026303,2]
[314329277,1708186239146,-256.70459311,0.00026397,10]
[314329279,1708186239155,-177.43,0.00026397,2]
[314329281,1708186239165,-23256.91513859,0.000264,2]
[314329283,1708186239174,-174.47226716,0.000264,2]
[314329285,1708186239183,-1175.52,0.00026424,2]
[314329287,1708186239192,-2105.09,0.00026434,2]
[314329289,1708186239201,-167.0,0.00026498,2]
[314329291,1708186239210,-2105.09,0.00026565,2]
[314329293,1708186239220,-242.18,0.00026643,2]
[314329294,1708186239229,-2105.09,0.00026696,2]
[314329295,1708186239238,-166.49,0.00026715,2]
[314329296,1708186239247,-180.44,0.00026825,2]
[314329297,1708186239256,-2105.09,0.00026826,2]
[314329298,1708186239265,-177.43,0.00026945,2]
[314329299,1708186239274,-2105.09,0.00026957,2]
[314329300,1708186239283,-409.54,0.00026959,2]
[314329301,1708186239293,-1847.66793539,0.00026998,2]
[314329302,1708186239302,-207.6,0.00027062,2]
[314329303,1708186239312,-2105.09,0.00027088,2]
[314329304,1708186239322,-1167.2,0.00027091,2]
[314329305,1708186239331,-3398.68,0.00027123,2]
[314329306,1708186239340,-800.0,0.00027178,2]
[314329307,1708186239350,-33418.93623549,0.000272,2]
[314329308,1708186239359,-2105.09,0.00027219,2]
[314329309,1708186239368,-2105.09,0.0002735,2]
[314329310,1708186239377,-205.0,0.00027361,2]
[314329311,1708186239387,-150.0,0.00027397,2]
[314329312,1708186239396,-3000.0,0.00027397,2]
[314329313,1708186239405,-3000.0,0.00027397,2]
[314329314,1708186239414,-3000.0,0.00027397,2]
[314329315,1708186239423,-3000.0,0.00027397,2]
[314329316,1708186239432,-3000.0,0.00027397,2]
[314329317,1708186239441,-3000.0,0.00027397,2]
[314329318,1708186239450,-3000.0,0.00027397,2]
[314329319,1708186239460,-3000.0,0.00027397,2]
[314329320,1708186239470,-3000.0,0.00027397,2]
[314329321,1708186239479,-3000.0,0.00027397,2]
[314329322,1708186239489,-3000.0,0.00027397,2]
[314329323,1708186239499,-3000.0,0.00027397,2]
[314329324,1708186239509,-3000.0,0.00027397,2]
[314329325,1708186239518,-3000.0,0.00027397,2]
[314329326,1708186239527,-4842.90253915,0.00027397,2]
[314329327,1708186239536,-300.0,0.00027397,5]
[314329328,1708186239546,-155.0,0.00027397,2]
[314329329,1708186239555,-1091.35,0.00027397,2]
[314329330,1708186239564,-33030.75,0.00027397,2]
[314329331,1708186239573,-7183.6,0.00027434,2]
[314329332,1708186239582,-177.43,0.00027493,2]
[314329333,1708186239591,-8256.37090165,0.000275,2]
[314329334,1708186239601,-991.71,0.00027544,2]
[314329335,1708186239610,-1091.35,0.00027556,2]
[314329336,1708186239619,-293.0,0.00027587,2]
[314329337,1708186239628,-1175.52,0.00027683,2]
[314329338,1708186239637,-1091.35,0.00027714,2]
[314329339,1708186239646,-166.49,0.00027733,2]
[314329340,1708186239655,-1091.35,0.00027872,2]
[314329341,1708186239664,-564.3074282,0.000279,14]
[314329342,1708186239674,-150.0,0.00027945,2]
[314329343,1708186239683,-300.0,0.00027945,5]
[314329344,1708186239692,-242.18,0.00027975,2]
[314329345,1708186239702,-1572665.37534013,0.00028,2]
[314329346,1708186239711,-3588.10246471,0.00028,2]
[314329347,1708186239720,-1167.2,0.00028016,2]
[314329348,1708186239730,-1091.35,0.0002803,2]
[314329349,1708186239739,-177.43,0.00028041,2]
[314329350,1708186239748,-143418.00465383,0.000281,2]
[314329351,1708186239757,-1091.35,0.00028189,2]
[314329352,1708186239767,-1091.35,0.00028347,2]
[314329353,1708186239776,-1847.66793539,0.00028364,2]
[314329354,1708186239785,-150.0,0.00028493,2]
[314329355,1708186239793,-300.0,0.00028493,5]
[314329356,1708186239803,-1091.35,0.00028505,2]
[314329357,1708186239812,-177.43,0.00028589,2]
[314329358,1708186239821,-1091.35,0.00028664,2]
[314329359,1708186239829,-166.49,0.00028751,2]
[314329361,1708186239839,-155.0,0.00028767,2]
[314329362,1708186239847,-1091.35,0.00028822,2]
[314329363,1708186239857,-1175.52,0.00028941,2]
[314329365,1708186239866,-1167.2,0.00028941,2]
[314329367,1708186239874,-150.0,0.00029041,2]
[314329369,1708186239883,-452.73387474,0.00029041,5]
[314329371,1708186239892,-7183.6,0.00029078,2]
[314329373,1708186239901,-177.43,0.00029137,2]
[314329374,1708186239910,-242.18,0.00029307,2]
[314329375,1708186239919,-150.0,0.00029589,2]
[314329376,1708186239928,-5759.8672,0.00029599,2]
[314329377,1708186239937,-23184.9778,0.00029599,2]
[314329378,1708186239946,-21159.0418,0.00029599,2]
[314329379,1708186239955,-500.0,0.00029599,2]
[314329380,1708186239964,-177.43,0.00029685,2]
[314329381,1708186239972,-1847.66793539,0.0002973,2]
[314329382,1708186239981,-991.71,0.00029808,2]
[314329383,1708186239990,-1167.2,0.00029867,2]
[314329384,1708186239999,-1001.77650296,0.00029899,5]
[314329385,1708186240008,-174.47226716,0.000299,2]
[314329386,1708186240017,-800.0,0.00029973,2]
[314329387,1708186240026,-71118.16699109,0.0003,4]
[314329388,1708186240035,-1861.66346308,0.0003,4]
[314329389,1708186240044,-4481.09295103,0.0003,2]
[314329390,1708186240054,-1189.15282441,0.0003,4]
[314329391,1708186240065,-456266.95772415,0.0003,2]
[314329392,1708186240076,-205.0,0.0003,2]
[314329393,1708186240085,-1579.95882092,0.000301,2]
[314329394,1708186240094,-155.51,0.00030137,2]
[314329395,1708186240103,-150.0,0.00030137,2]
[314329396,1708186240113,-155.0,0.00030137,2]
[314329397,1708186240122,-1175.52,0.00030199,2]
[314329398,1708186240131,-177.43,0.00030233,2]
[314329399,1708186240140,-564.30742817,0.000304,17]
[314329400,1708186240150,-883.04726868,0.00030421,2]
[314329401,1708186240159,-1728.03837322,0.00030421,2]
[314329402,1708186240168,-156.98721172,0.00030421,2]
[314329403,1708186240177,-1151.61462989,0.00030421,2]
[314329404,1708186240186,-1936.19939162,0.00030421,2]
[314329405,1708186240195,-242.18,0.00030639,2]
[314329406,1708186240204,-150.0,0.00030685,2]
[314329407,1708186240213,-7183.6,0.00030722,2]
[314329408,1708186240222,-177.43,0.00030781,2]
[314329409,1708186240232,-1167.2,0.00030792,2]
[314329410,1708186240241,-155.51,0.00030822,2]
[314329411,1708186240250,-167.0,0.00030871,2]
[314329412,1708186240259,-7660.13026184,0.00031,2]
[314329413,1708186240268,-1847.66793539,0.00031095,2]
[314329414,1708186240277,-150.0,0.00031233,2]
[314329415,1708186240286,-177.43,0.00031329,2]
[314329416,1708186240296,-4645.7208012,0.0003143,4]
[314329417,1708186240305,-582.03,0.000315,2]
[314329418,1708186240316,-155.51,0.00031507,2]
[314329419,1708186240326,-155.0,0.00031507,2]
[314329420,1708186240335,-168.79,0.00031644,2]
[314329421,1708186240344,-1167.2,0.00031718,2]
[314329422,1708186240353,-178.83894219,0.00031781,2]
[314329423,1708186240362,-177.43,0.00031877,2]
[314329424,1708186240372,-242.18,0.00031971,2]
[314329425,1708186240381,-991.71,0.00032072,2]
[314329426,1708186240390,-2860.66710423,0.00032125,2]
[314329427,1708186240399,-155.51,0.00032192,2]
[314329428,1708186240408,-7183.6,0.00032365,2]
[314329429,1708186240417,-177.43,0.00032425,2]
[314329430,1708186240426,-1847.66793539,0.00032461,4]
[314329431,1708186240436,-1001.6398363,0.000328,2]
[314329432,1708186240445,-37326.86,0.00032877,2]
[314329433,1708186240455,-155.51,0.00032877,2]
[314329434,1708186240464,-155.0,0.00032877,2]
[314329435,1708186240473,-8000.0,0.000329,2]
[314329436,1708186240482,-564.30742817,0.000329,21]
[314329437,1708186240492,-177.43,0.00032973,2]
[314329438,1708186240501,-7304.43165062,0.00033,2]
[314329439,1708186240510,-260.0131635,0.00033,3]
[314329440,1708186240520,-242.18,0.00033303,2]
[314329441,1708186240529,-396.54431798,0.000335,2]
[314329442,1708186240538,-177.43,0.00033521,2]
[314329443,1708186240547,-155.51,0.00033562,2]
[314329444,1708186240556,-1847.66793539,0.00033827,6]
[314329445,1708186240565,-153.10177863,0.000339,2]
[314329446,1708186240574,-153.10177847,0.000339,2]
[314329448,1708186240583,-153.10177847,0.000339,2]
[314329449,1708186240592,-153.10177847,0.000339,2]
[314329450,1708186240601,-153.10177847,0.000339,2]
[314329451,1708186240611,-153.10177847,0.000339,2]
[314329452,1708186240620,-153.10177847,0.000339,2]
[314329453,1708186240630,-153.10177847,0.00034046,2]
[314329454,1708186240639,-177.43,0.00034069,2]
[314329455,1708186240647,-6642.0,0.000342,2]
[314329456,1708186240656,-155.51,0.00034247,2]
[314329457,1708186240665,-155.0,0.00034247,2]
[314329458,1708186240674,-991.71,0.00034336,2]
[314329459,1708186240683,-8559.7,0.00034521,2]
[314329460,1708186240692,-177.43,0.00034617,2]
[314329461,1708186240701,-242.18,0.00034635,2]
[314329462,1708186240710,-386.07065335,0.0003487,14]
[314329463,1708186240719,-1810.73948697,0.000349,2]
[314329464,1708186240728,-1810.73948692,0.000349,2]
[314329465,1708186240737,-1810.73948692,0.000349,2]
[314329466,1708186240746,-1810.73948692,0.000349,2]
[314329467,1708186240755,-1810.73948692,0.000349,2]
[314329468,1708186240765,-1810.73948692,0.000349,2]
[314329469,1708186240774,-1810.73948692,0.000349,2]
[314329470,1708186240783,-1810.73948692,0.000349,2]
[314329471,1708186240792,-155.51,0.00034932,2]
[314329472,1708186240801,-4463.03736822,0.00035,30]
[314329473,1708186240810,-15863.16807961,0.00035,7]
[314329474,1708186240821,-12938.96551711,0.00035,2]
[314329475,1708186240830,-38661.45884693,0.00035,4]
[314329476,1708186240839,-230.08544777,0.00035,7]
[314329477,1708186240848,-412.64662782,0.00035,2]
[314329478,1708186240857,-412.64662782,0.00035,2]
[314329479,1708186240867,-412.64662782,0.00035,2]
[314329480,1708186240875,-317.68851626,0.00035,2]
[314329481,1708186240885,-232.38341037,0.00035,2]
[314329482,1708186240894,-18344.17007784,0.00035,2]
[314329483,1708186240903,-103343.6539013,0.0003509,2]
[314329484,1708186240911,-177.43,0.00035165,2]
[314329485,1708186240920,-1847.66793539,0.00035193,7]
[314329486,1708186240930,-171382.68,0.000352,2]
[314329487,1708186240939,-564.30742817,0.000354,25]
[314329488,1708186240948,-1810.73948692,0.00035532,2]
[314329489,1708186240957,-6642.41894876,0.000356,2]
[314329490,1708186240966,-500.0,0.00035616,2]
[314329491,1708186240975,-500.0,0.00035616,2]
[314329492,1708186240983,-500.0,0.00035616,2]
[314329493,1708186240992,-500.0,0.00035616,2]
[314329494,1708186241001,-500.0,0.00035616,2]
[314329495,1708186241010,-500.0,0.00035616,2]
[314329496,1708186241020,-500.0,0.00035616,2]
[314329497,1708186241029,-500.0,0.00035616,2]
[314329498,1708186241038,-500.0,0.00035616,2]
[314329499,1708186241047,-500.0,0.00035616,2]
[314329500,1708186241056,-500.0,0.00035616,2]
[314329501,1708186241066,-500.0,0.00035616,2]
[314329502,1708186241077,-500.0,0.00035616,2]
[314329503,1708186241086,-500.0,0.00035616,2]
[314329504,1708186241095,-500.0,0.00035616,2]
[314329505,1708186241104,-500.0,0.00035616,2]
[314329506,1708186241114,-500.0,0.00035616,2]
[314329507,1708186241123,-500.0,0.00035616,2]
[314329508,1708186241132,-500.0,0.00035616,2]
[314329509,1708186241141,-500.0,0.00035616,2]
[314329510,1708186241151,-201.70261338,0.00035616,2]
[314329511,1708186241160,-1500.0,0.00035616,10]
[314329512,1708186241169,-1186.11,0.00035616,2]
[314329513,1708186241178,-155.51,0.00035616,2]
[314329514,1708186241187,-155.0,0.00035617,2]
[314329515,1708186241197,-153.10177847,0.00035638,2]
[314329516,1708186241206,-257.77454372,0.000357,2]
[314329517,1708186241215,-339.13640402,0.00035713,2]
[314329518,1708186241224,-1000.0,0.00035793,2]
[314329519,1708186241234,-8559.7,0.00035798,2]
[314329520,1708186241243,-1289.65277133,0.00035888,30]
[314329521,1708186241253,-460.59511204,0.0003591,5]
[314329522,1708186241262,-242.18,0.00035968,2]
[314329523,1708186241271,-6198.80531301,0.00036,2]
[314329524,1708186241280,-150.46009333,0.00036,2]
[314329525,1708186241289,-170.64,0.00036007,120]
[314329526,1708186241298,-1107.31152752,0.000362,2]
[314329527,1708186241307,-155.51,0.00036301,2]
[314329528,1708186241316,-52291.75687714,0.00036389,2]
[314329529,1708186241325,-52291.75687714,0.00036389,2]
[314329530,1708186241335,-52291.75687714,0.00036389,2]
[314329531,1708186241344,-52291.75687714,0.00036389,2]
[314329532,1708186241353,-40346.90677439,0.000365,7]
[314329533,1708186241362,-1847.66793539,0.00036559,9]
[314329534,1708186241371,-991.71,0.00036599,2]
[314329535,1708186241381,-174.21,0.00036794,120]
[314329536,1708186241390,-50969.33420852,0.000368,2]
[314329537,1708186241399,-150.1,0.000368,2]
[314329538,1708186241408,-150.0,0.00036986,2]
[314329539,1708186241417,-155.51,0.00036986,2]
[314329540,1708186241426,-155.0,0.00036987,2]
[314329541,1708186241436,-4267.1691272,0.00037,14]
[314329542,1708186241445,-1199.9999992,0.00037,38]
[314329543,1708186241455,-52291.75687714,0.00037033,2]
[314329544,1708186241464,-4796.63,0.00037061,2]
[314329545,1708186241473,-8559.7,0.00037075,2]
[314329546,1708186241482,-1810.73948692,0.00037111,2]
[314329547,1708186241491,-2551.43713194,0.00037134,2]
[314329548,1708186241500,-153.10177847,0.00037231,2]
[314329549,1708186241509,-150.0,0.00037399,30]
[314329550,1708186241519,-186544.49370651,0.000374,5]
[314329551,1708186241529,-180.0,0.00037671,2]
[314329552,1708186241538,-155.51,0.00037671,2]
[314329553,1708186241547,-21896.15687651,0.000377,3]
[314329554,1708186241556,-162.8658829,0.000378,2]
[314329556,1708186241566,-209.18429795,0.0003787,7]
[314329558,1708186241575,-150.0,0.00037879,30]
[314329560,1708186241585,-2379093.32257465,0.0003788,2]
[314329561,1708186241594,-18344.17007784,0.0003788,2]
[314329562,1708186241603,-150.0,0.00037899,30]
[314329563,1708186241612,-654226.080782,0.000379,3]
[314329564,1708186241621,-883.04726868,0.000379,2]
[314329565,1708186241631,-1728.03837322,0.000379,2]
[314329566,1708186241640,-564.30742817,0.000379,28]
[314329567,1708186241649,-156.98721172,0.000379,2]
[314329568,1708186241659,-1151.61462989,0.000379,2]
[314329569,1708186241668,-1936.19939162,0.000379,2]
[314329570,1708186241677,-1847.66793539,0.00037925,11]
[314329571,1708186241686,-165.40063134,0.00037999,30]
[314329572,1708186241695,-363.01164153,0.00038,4]
[314329573,1708186241705,-562281.23286055,0.00038,2]
[314329574,1708186241714,-1903763.95679652,0.00038,2]
[314329575,1708186241723,-317.68851626,0.00038,2]
[314329576,1708186241732,-232.38341037,0.00038,2]
[314329577,1708186241741,-18922.0,0.00038166,2]
[314329578,1708186241750,-1000.0,0.00038352,2]
[314329579,1708186241759,-8559.7,0.00038352,2]
[314329580,1708186241769,-155.84,0.00038356,2]
[314329581,1708186241778,-155.51,0.00038356,2]
[314329582,1708186241787,-213.89,0.00038356,15]
[314329583,1708186241796,-201.59,0.00038356,2]
[314329584,1708186241805,-155.0,0.00038357,2]
[314329585,1708186241815,-2212.81085365,0.000385,2]
[314329586,1708186241972,-1810.73948692,0.00038689,2]
[314329587,1708186241982,-43792.28,0.000387,4]
[314329588,1708186241991,-52291.75687714,0.000388,2]
[314329589,1708186242000,-151.0,0.0003881,4]
[314329590,1708186242010,-153.10177847,0.00038823,2]
[314329591,1708186242019,-991.71,0.00038863,2]
[314329592,1708186242028,-726.00250677,0.00038899,10]
[314329593,1708186242037,-1000.0,0.00038899,2]
[314329594,1708186242046,-4194601.81887735,0.000389,3]
[314329595,1708186242055,-18344.17007784,0.000389,2]
[314329596,1708186242069,-1907.83291422,0.00039,2]
[314329597,1708186242078,-155.51,0.00039041,2]
[314329598,1708186242087,-211.67,0.0003926,2]
[314329599,1708186242096,-1000.0,0.000395,2]
[314329600,1708186242105,-151.0,0.00039603,2]
[314329601,1708186242114,-8559.7,0.0003963,2]
[314329602,1708186242123,-65688.42,0.000397,4]
[314329603,1708186242133,-155.51,0.00039726,2]
[314329604,1708186242142,-155.0,0.00039727,2]
[314329605,1708186242151,-4459.68519724,0.000398,7]
[314329606,1708186242161,-160.0,0.000398,3]
[314329607,1708186242170,-225920.44392678,0.00039877,2]
[314329608,1708186242180,-1721477.78761597,0.0003988,2]
[314329609,1708186242189,-2768511.28040247,0.0003988,2]
[314329610,1708186242206,-1294260.6170399,0.0003988,2]
[314329611,1708186242218,-260462.69840913,0.0003988,2]
[314329612,1708186242230,-3148.33844963,0.0003988,2]
[314329613,1708186242242,-4995.28537903,0.0003988,2]
[314329614,1708186242254,-2017.00267295,0.0003988,2]
[314329615,1708186242357,560.52019988,0.00022317,2]
[314329621,1708186243166,-2149.02439129,0.00027186,3]
[314329622,1708186243175,-2296.37110795,0.00037399,2]
[314329623,1708186243188,-3187.37433613,0.00037399,2]
[314329624,1708186243199,-19298.85923478,0.00037399,2]
[314329625,1708186243360,-6564.45337809,0.00037399,2]
[314329626,1708186243371,-7768.8,0.00037399,2]
[314329627,1708186243387,-7778.5,0.00037399,2]
[314329628,1708186243403,-46782.59194305,0.00037399,2]
[314329629,1708186243412,-114494.05,0.00037399,2]
[314329630,1708186243422,-242594.73261776,0.0003988,2]
[314329650,1708186246120,-400.0,0.000229,2]
[314329651,1708186246161,-600.0,0.000229,2]
[314329652,1708186246171,-9781.89887999,0.0003988,2]
[314329653,1708186246183,-258.48,0.0003988,2]
[314329654,1708186246220,-2837.4296,0.0003988,2]
[314329655,1708186246232,-163807.80994273,0.0003988,2]
[314329656,1708186366616,155.3154,0.00022353,2]
[314329658,1708186415793,188.4559,0.00022353,2]
[314329659,1708186668574,550.0,0.00025,3]
[314329660,1708186685350,176.85,0.00016744,2]
[314329664,1708187188756,176.85,0.00016712,2]
[314329665,1708187309366,200.0,0.00016628,2]
[314329679,1708187432242,-570.05325636,0.00022699,2]
[314329680,1708187434660,-85.44469552,0.00022699,2]
[314329681,1708187434670,-4872.30362992,0.00022699,2]
[314329682,1708187434679,-158.71175441,0.000227,2]
[314329683,1708187434690,-1263.2162,0.000227,2]
[314329684,1708187434699,-1000.0,0.000228,2]
[314329685,1708187434709,-155.6126,0.000228,2]
[314329686,1708187434719,-227.8855,0.000228,2]
[314329687,1708187434728,-5599.837657,0.000229,2]
[314329688,1708187434740,-478.00274364,0.000229,2]
[314329689,1708187434751,-5866.22592182,0.000229,2]
[314329696,1708187440478,-233055.93367754,0.000229,2]
[314329697,1708187440488,-300.0,0.00022999,2]
[314329698,1708187440497,-300.0,0.00022999,2]
[314329699,1708187440507,-300.0,0.00022999,2]
[314329700,1708187440516,-303.0645485,0.00022999,2]
[314329701,1708187440526,-162.1523967,0.0002495,2]
[314329702,1708187440535,-158.71175441,0.00026116,2]
[314329703,1708187440544,-600.0,0.00027,3]
[314329704,1708187440553,-650.0,0.00029,3]
[314329705,1708187440563,-158.71175441,0.00029532,2]
[314329706,1708187440573,-275.27199979,0.0003,2]
[314329707,1708187440583,-700.0,0.00031,3]
[314329708,1708187440593,-158.71175441,0.00032948,2]
[314329709,1708187440602,-750.0,0.00033,3]
[314329710,1708187440611,-250.0,0.00033771,2]
[314329711,1708187440621,-2000.0,0.00033809,2]
[314329712,1708187440630,-790.74,0.00033811,2]
[314329713,1708187440639,-1000.0,0.00033811,2]
[314329714,1708187440649,-200.0,0.00033896,2]
[314329715,1708187440658,-150.0,0.00034175,2]
[314329716,1708187440668,-208.4,0.00034221,2]
[314329717,1708187440678,-500.0,0.00034293,2]
[314329718,1708187440687,-990.38,0.00034323,2]
[314329719,1708187440697,-534.58,0.00034361,2]
[314329721,1708187440706,-23900.0,0.00034372,2]
[314329722,1708187440715,-1760.16,0.00034521,2]
[314329723,1708187440725,-200.0,0.00034924,2]
[314329724,1708187440734,-800.0,0.00035,3]
[314329725,1708187440743,-499.99,0.00035,2]
[314329726,1708187440754,-1346.7848607,0.00035,3]
[314329727,1708187440763,-250.0,0.00035,120]
[314329728,1708187440772,-2138.59380689,0.00035068,30]
[314329729,1708187440782,-300.0,0.00035123,2]
[314329730,1708187440791,-237.57,0.00035374,2]
[314329731,1708187440800,-485.58,0.00035374,2]
[314329732,1708187440810,-1760.16,0.00035798,2]
[314329733,1708187440819,-168.79,0.00035983,2]
[314329734,1708187440828,-250.0,0.00036,120]
[314329735,1708187440838,-250.0,0.00036241,2]
[314329736,1708187440847,-1343.1402446,0.00036289,7]
[314329737,1708187440857,-158.71175441,0.00036364,2]
[314329738,1708187440866,-21996.88432268,0.00036389,2]
[314329740,1708187440875,-21996.88432263,0.00036389,2]
[314329741,1708187440885,-21996.88432263,0.00036389,2]
[314329742,1708187440894,-21996.88432263,0.00036389,2]
[314329743,1708187440903,-21996.88432263,0.00036389,2]
[314329744,1708187440912,-300.0,0.00036492,2]
[314329745,1708187440921,-990.38,0.00036587,2]
[314329746,1708187440930,-9858.52557029,0.00036778,9]
[314329747,1708187440939,-15918.09995162,0.00036798,2]
[314329748,1708187440948,-15918.0999516,0.00036798,2]
[314329749,1708187440957,-15918.0999516,0.00036798,2]
[314329750,1708187440966,-15918.0999516,0.00036798,2]
[314329751,1708187440975,-15918.0999516,0.00036798,2]
[314329752,1708187440985,-850.0,0.00037,3]
[314329753,1708187440994,-1333.79535742,0.00037052,2]
[314329754,1708187441003,-1760.16,0.00037075,2]
[314329755,1708187441012,-9858.52557029,0.00037132,9]
[314329756,1708187441021,-165.08,0.00037479,2]
[314329757,1708187441030,-19717.0511406,0.00037483,10]
[314329758,1708187441039,-158.5,0.00037566,2]
[314329759,1708187441048,-180.0,0.00037671,2]
[314329760,1708187441058,-151.0,0.00037786,7]